bitfinex-derivatives/quotes_SOLF0:USTF0_20240925
["timestamp","ask_amount","ask_price","bid_price","bid_amount"]
[1727246714582,2.7164,150.12,150.03,3.3323]
[1727246715179,2.7164,150.12,150.04,3.3322]
[1727246715678,3.3314,150.08,150.04,3.3322]
[1727246716080,3.3311,150.1,150.05,3.3319]
[1727246716284,16.01,150.13,150.05,3.3319]
[1727246716675,3.3313,150.09,150.04,3.3321]
[1727246716879,16.01,150.13,150.02,16.01]
[1727246717385,16.01,150.13,150.03,3.3324]
[1727246717684,16.01,150.11,150.03,3.3324]
[1727246717884,3.3315,150.08,150.03,3.3324]
[1727246718491,3.3316,150.07,150.03,3.3324]
[1727246719186,3.3318,150.06,150.02,19.3426]
[1727246719583,16.01,150.13,150.02,19.3426]
[1727246719779,16.01,150.11,150.01,6.0318]
[1727246720285,16.01,150.11,150.02,3.3326]
[1727246721589,3.3317,150.07,150.02,3.3326]
[1727246722184,3.3318,150.06,150.02,3.3326]
[1727246722386,16.01,150.09,150.01,4.6664]
[1727246723893,3.332,150.06,150.01,4.6664]
[1727246724387,3.332,150.05,150.03,10.24]
[1727246724893,2.7345,150.16,150.04,10.24]
[1727246725089,10.24,150.08,150.01,1.3335]
[1727246725385,10.24,150.08,150.03,10.24]
[1727246725596,10.24,150.06,150.01,1.3335]
[1727246725783,10.24,150.06,150.01,11.5735]
[1727246725988,10.24,150.05,150.01,11.5735]
[1727246726189,10.24,150.05,150.01,1.3335]
[1727246727892,3.3326,150.03,150.01,1.3335]
[1727246728089,3.3326,150.03,150.01,11.5735]
[1727246728697,3.3323,150.04,150.01,11.5735]
[1727246730197,3.3323,150.04,150.01,1.3335]
[1727246730497,3.3323,150.04,150.01,11.5735]
[1727246730691,3.3325,150.03,150.01,11.5735]
[1727246731896,10.24,150.05,150.01,11.5735]
[1727246732097,10.24,150.05,150.01,10.24]
[1727246732898,3.3326,150.03,150.01,10.24]
[1727246733293,10.24,150.04,149.98,10.24]
[1727246733494,3.3329,150.01,149.98,10.24]
[1727246734294,3.3329,150.01,149.98,13.5735]
[1727246735898,10.24,150.04,149.98,10.24]
[1727246736394,3.3331,150.01,149.98,10.24]
[1727246737495,3.3327,150.02,149.99,10.24]
[1727246737893,3.3327,150.02,150.01,10.24]
[1727246738096,19.98,150.16,150.01,10.24]
[1727246738406,19.98,150.16,149.96,2.8016]
[1727246738407,10.24,150.13,150.06,10.24]
[1727246738701,3.3315,150.08,150.06,10.24]
[1727246739101,10.24,150.13,150.06,10.24]
[1727246739699,3.3315,150.08,150.05,10.24]
[1727246740903,3.3316,150.07,150.05,10.24]
[1727246741092,10.24,150.1,150.04,10.24]
[1727246741296,1.3651,150.09,150.04,10.24]
[1727246741704,1.3651,150.09,150.05,10.24]
[1727246742905,3.3315,150.08,150.05,10.24]
[1727246743499,3.3315,150.08,150.07,10.24]
[1727246743706,4.6963,150.09,150.07,10.24]
[1727246744503,4.6963,150.09,150.08,10.24]
[1727246747898,3.3312,150.09,150.08,10.24]
[1727246750605,3.331,150.1,150.08,10.24]
[1727246751003,11.544,150.14,150.06,3.3317]
[1727246751197,3.3308,150.11,150.09,10.24]
[1727246752506,3.3305,150.12,150.09,10.24]
[1727246753304,3.3307,150.11,150.09,10.24]
[1727246753507,3.3307,150.11,150.1,10.24]
[1727246756812,3.3307,150.11,150.06,3.3317]
[1727246757013,3.3307,150.11,150.09,10.24]
[1727246761414,3.3309,150.1,150.06,3.3317]
[1727246761716,10.24,150.13,150.08,10.24]
[1727246761916,3.331,150.1,150.08,10.24]
[1727246762317,1.304,150.14,150.09,10.24]
[1727246762614,11.544,150.14,150.09,10.24]
[1727246762817,3.3309,150.1,150.09,10.24]
[1727246763612,3.3308,150.11,150.09,10.24]
[1727246766520,10.24,150.12,150.02,4.1437]
[1727246766713,10.24,150.12,150.06,10.24]
[1727246768023,3.3314,150.08,150.06,10.24]
[1727246770020,3.3312,150.09,150.06,10.24]
[1727246771026,3.3313,150.08,150.06,10.24]
[1727246774929,3.3313,150.08,150.03,3.3323]
[1727246775127,3.3313,150.08,150.05,10.24]
[1727246779627,3.3313,150.08,150.06,10.24]
[1727246780424,10.24,150.13,150.07,10.24]
[1727246780829,3.3311,150.1,150.07,10.24]
[1727246782632,3.3311,150.1,150.06,10.24]
[1727246784830,3.3311,150.1,150.06,13.5718]
[1727246785733,3.3311,150.1,150.06,10.24]
[1727246786231,3.3312,150.09,150.06,10.24]
[1727246786436,3.3312,150.09,150.05,13.5719]
[1727246788631,10.24,150.1,150.02,4.1437]
[1727246788833,10.24,150.07,150.02,4.1437]
[1727246789026,10.24,150.07,150.02,14.3837]
[1727246789233,3.3322,150.05,150.02,4.1437]
[1727246789833,3.3318,150.07,150.03,3.3324]
[1727246790033,10.24,150.08,150.03,3.3324]
[1727246790939,3.3319,150.06,150.03,3.3324]
[1727246791540,3.3319,150.06,150.02,17.7163]
[1727246793234,3.3319,150.06,150.03,3.3324]
[1727246793435,3.3319,150.06,150.04,10.24]
[1727246794336,10.24,150.09,150.04,13.5721]
[1727246794537,10.24,150.1,150.05,10.24]
[1727246794944,3.3314,150.08,150.05,10.24]
[1727246795439,3.3316,150.07,150.05,10.24]
[1727246795644,3.3316,150.07,150.04,10.24]
[1727246796744,3.3316,150.07,150.04,13.5722]
[1727246797940,3.3316,150.07,150.04,10.24]
[1727246799042,1.304,150.14,150.06,10.24]
[1727246799241,10.24,150.13,150.07,10.24]
[1727246800448,3.331,150.1,150.07,10.24]
[1727246801147,3.331,150.1,150.06,10.24]
[1727246801344,3.3312,150.09,150.06,10.24]
[1727246807451,10.24,150.1,150.04,10.24]
[1727246808651,3.3315,150.08,150.04,10.24]
[1727246808852,10.24,150.1,150.04,10.24]
[1727246809054,3.3315,150.08,150.04,10.24]
[1727246810252,3.3316,150.07,150.04,10.24]
[1727246811853,3.3318,150.06,150.04,10.24]
[1727246814452,3.3318,150.06,150.02,7.4763]
[1727246814761,3.332,150.05,150.03,10.24]
[1727246815657,3.3319,150.06,150.03,10.24]
[1727246815858,10.24,150.09,150.04,10.24]
[1727246816053,10.24,150.1,150.02,4.1437]
[1727246816258,3.3317,150.07,150.05,10.24]
[1727246819762,3.3318,150.06,150.05,10.24]
[1727246819959,3.3318,150.06,150.03,10.24]
[1727246820462,3.3317,150.07,150.05,10.24]
[1727246820763,10.24,150.11,150.05,10.24]
[1727246822159,1.304,150.14,150.06,10.24]
[1727246822358,10.24,150.12,150.06,10.24]
[1727246822764,10.24,150.1,150.06,10.24]
[1727246823170,3.3313,150.09,150.06,10.24]
[1727246826668,3.3313,150.09,150.05,10.24]
[1727246826863,3.331,150.1,150.05,10.24]
[1727246827065,10.24,150.12,150.07,10.24]
[1727246827269,1.304,150.14,150.08,10.24]
[1727246827471,10.24,150.13,150.08,10.24]
[1727246827767,3.3307,150.11,150.08,10.24]
[1727246828169,10.24,150.13,150.08,10.24]
[1727246828170,3.3311,150.1,150.08,10.24]
[1727246828370,3.3311,150.1,150.07,10.24]
[1727246828570,10.24,150.12,150.06,10.24]
[1727246828865,10.24,150.1,150.04,10.24]
[1727246829061,10.24,150.09,150.03,10.24]
[1727246829578,3.3314,150.08,150.03,13.5723]
[1727246830172,3.3316,150.07,150.03,13.5723]
[1727246830667,13.42706889,150.12,150.03,10.24]
[1727246830869,10.24,150.06,150.02,1.4003]
[1727246831279,3.3328,150.02,149.98,80.0]
[1727246831475,3.34166666,150.08,149.96,10.24]
[1727246831476,10.24,150.01,149.96,10.24]
[1727246831975,3.3335,149.99,149.96,10.24]
[1727246832164,3.3335,149.99,149.95,14.8919]
[1727246832374,10.24,150.0,149.95,11.5577]
[1727246832570,3.3338,149.97,149.95,1.3177]
[1727246833272,3.334,149.96,149.95,1.3177]
[1727246833575,3.334,149.96,149.92,10.24]
[1727246835870,3.334,149.96,149.92,13.5748]
[1727246836169,10.24,149.99,149.93,10.24]
[1727246836678,3.3336,149.98,149.93,13.5745]
[1727246837074,3.3336,149.98,149.95,10.24]
[1727246837772,10.24,149.99,149.95,10.24]
[1727246837773,3.3334,149.99,149.95,10.24]
[1727246838172,3.3336,149.98,149.95,10.24]
[1727246839177,3.3334,149.99,149.95,10.24]
[1727246840478,3.3334,149.99,149.95,13.5742]
[1727246840680,3.3331,150.0,149.96,10.24]
[1727246841071,13.5731,150.0,149.96,10.24]
[1727246841277,3.3335,149.99,149.95,10.24]
[1727246841779,3.3336,149.98,149.95,10.24]
[1727246842775,1.3915,150.04,149.96,10.24]
[1727246842979,10.24,150.02,149.96,10.24]
[1727246843981,3.3331,150.0,149.96,13.574]
[1727246848685,10.24,150.01,149.96,10.24]
[1727246848985,10.24,150.0,149.95,10.24]
[1727246849379,3.3336,149.99,149.95,10.24]
[1727246849881,3.3336,149.99,149.95,13.5742]
[1727246850086,3.3336,149.98,149.95,10.24]
[1727246850378,10.24,149.98,149.93,13.5746]
[1727246850779,10.24,149.97,149.92,10.24]
[1727246851178,3.3342,149.96,149.92,13.5748]
[1727246851379,10.24,149.97,149.92,13.5748]
[1727246852789,10.24,149.98,149.93,13.5746]
[1727246854683,10.24,149.98,149.94,3.3344]
[1727246855786,3.3338,149.97,149.94,3.3344]
[1727246856686,3.3338,149.97,149.94,13.5744]
[1727246856885,1.3915,150.04,149.96,10.24]
[1727246857086,10.24,150.01,149.96,10.24]
[1727246857888,3.3335,149.99,149.96,13.574]
[1727246858089,3.3335,149.99,149.96,10.24]
[1727246858384,3.3332,150.0,149.96,10.24]
[1727246860193,3.333,150.01,149.96,13.574]
[1727246860384,3.333,150.01,149.96,10.24]
[1727246861391,3.333,150.01,149.97,3.3337]
[1727246863395,3.3331,150.0,149.97,3.3337]
[1727246865389,3.333,150.01,149.98,3.3335]
[1727246865596,3.333,150.01,149.97,10.24]
[1727246865800,10.24,150.03,149.97,10.24]
[1727246865998,10.24,150.02,149.97,10.24]
[1727246866891,3.3332,150.0,149.97,13.5737]
[1727246869398,3.333,150.01,149.97,13.5737]
[1727246870803,3.333,150.01,149.98,3.3335]
[1727246871005,97.669436,150.06,149.98,10.24]
[1727246871199,97.669436,150.06,150.01,10.24]
[1727246871507,107.909436,150.06,150.01,10.24]
[1727246871804,3.3324,150.04,150.01,10.24]
[1727246872999,3.3325,150.03,150.01,10.24]
[1727246873299,3.3325,150.03,150.0,13.573]
[1727246876009,3.3325,150.03,150.01,10.24]
[1727246877811,3.3325,150.03,150.0,13.573]
[1727246880208,3.3329,150.01,149.99,2.6824]
[1727246880418,3.3329,150.01,149.99,1.3812]
[1727246881516,3.3331,150.0,149.91,1.2839]
[1727246881711,3.3331,150.0,149.96,10.24]
[1727246882517,3.3331,150.0,149.96,13.5738]
[1727246883526,3.3331,150.0,149.96,10.24]
[1727246883721,3.3331,150.0,149.97,3.3337]
[1727246884617,3.3331,150.0,149.97,13.5737]
[1727246887518,3.3331,150.0,149.97,3.3337]
[1727246887718,3.3331,150.0,149.97,13.5737]
[1727246891619,3.3334,149.99,149.96,3.334]
[1727246893224,3.3336,149.98,149.95,13.5742]
[1727246895224,3.3334,149.99,149.96,3.334]
[1727246896533,3.3332,150.0,149.97,10.24]
[1727246897031,10.24,150.01,149.97,10.24]
[1727246897828,3.3334,149.99,149.97,10.24]
[1727246898427,3.3332,150.0,149.97,13.5737]
[1727246901331,97.669436,150.06,149.98,10.24]
[1727246901530,97.669436,150.06,150.01,10.24]
[1727246901739,97.669436,150.06,150.02,10.24]
[1727246902130,3.3321,150.05,150.02,13.5727]
[1727246902736,3.3321,150.05,150.02,10.24]
[1727246905027,3.3322,150.04,150.02,10.24]
[1727246906840,97.669436,150.06,150.03,10.24]
[1727246908538,101.001336,150.06,150.03,10.24]
[1727246909432,10.24,150.1,150.05,10.24]
[1727246909638,10.24,150.1,150.06,10.24]
[1727246910733,10.24,150.1,150.04,10.24]
[1727246911127,3.3316,150.07,150.04,10.24]
[1727246911833,3.3318,150.06,150.02,3.3326]
[1727246912138,1.3363,150.11,150.02,10.24]
[1727246912139,10.24,150.07,150.02,10.24]
[1727246912531,10.24,150.07,150.02,13.5727]
[1727246912834,10.24,150.07,150.02,10.24]
[1727246913333,3.3322,150.05,150.02,10.24]
[1727246918344,3.3322,150.05,150.03,10.24]
[1727246919840,3.3319,150.06,150.03,13.5724]
[1727246920045,3.3319,150.06,150.05,10.24]
[1727246922044,3.3316,150.07,150.05,10.24]
[1727246922242,3.3316,150.07,150.06,10.24]
[1727246923150,11.5763,150.11,150.06,10.24]
[1727246923747,3.3313,150.09,150.06,10.24]
[1727246926751,3.3313,150.08,150.06,10.24]
[1727246928348,3.3312,150.09,150.06,10.24]
[1727246929552,3.331,150.1,150.06,3.3317]
[1727246929756,1.4024,150.17,150.08,10.24]
[1727246929959,1.4024,150.17,150.1,10.24]
[1727246929960,2.8074,150.17,150.1,10.24]
[1727246930151,2.8074,150.17,150.12,10.24]
[1727246930152,6.21573333,150.17,150.12,10.24]
[1727246930351,13.0474,150.17,150.12,10.24]
[1727246930552,16.39873333,150.17,150.12,10.24]
[1727246931854,3.3302,150.13,150.12,10.24]
[1727246935059,6.15873333,150.17,150.07,3.37866666]
[1727246935252,10.24,150.15,150.1,10.24]
[1727246935662,3.3306,150.12,150.1,10.24]
[1727246937759,3.3306,150.12,150.11,10.24]
[1727246937961,3.3303,150.13,150.11,10.24]
[1727246939155,3.3305,150.12,150.11,10.24]
[1727246948871,4.75633333,150.17,150.11,10.24]
[1727246949067,4.75633333,150.17,150.14,10.24]
[1727246949262,3.35133333,150.17,150.14,10.24]
[1727246949460,107.90914719,150.19,150.14,10.24]
[1727246950870,3.3298,150.15,150.14,10.24]
[1727246951868,107.90914719,150.19,150.14,10.24]
[1727246952064,107.90914719,150.19,150.17,10.24]
[1727246952065,97.66914719,150.19,150.17,10.24]
[1727246952264,11.6161,150.23,150.17,10.24]
[1727246952471,11.6161,150.23,150.19,10.24]
[1727246953571,1.3761,150.23,150.19,10.24]
[1727246953971,3.3283,150.22,150.2,10.24]
[1727246954171,10.24,150.27,150.21,10.24]
[1727246954371,1.029588,150.26,150.24,10.24]
[1727246954566,3.3276,150.25,150.24,10.24]
[1727246954971,1.2911,150.35,150.24,10.24]
[1727246955169,3.3275,150.26,150.24,10.24]
[1727246955668,10.24,150.28,150.21,1.3465]
[1727246955871,10.24,150.28,150.22,10.24]
[1727246956468,3.3277,150.25,150.22,10.24]
[1727246956664,97.66914719,150.32,150.24,10.24]
[1727246956864,10.24,150.31,150.26,10.24]
[1727246957076,3.3269,150.28,150.25,10.24]
[1727246957571,3.3267,150.29,150.25,10.24]
[1727246958276,3.3265,150.3,150.27,10.24]
[1727246958678,107.90914719,150.32,150.21,4.64697948]
[1727246958679,10.24,150.29,150.21,4.64697948]
[1727246959177,10.24,150.29,150.24,10.24]
[1727246959369,10.24,150.28,150.21,4.64697948]
[1727246959572,10.24,150.28,150.23,10.24]
[1727246959976,3.3273,150.27,150.23,10.24]
[1727246960677,3.3273,150.27,150.24,10.24]
[1727246964278,3.3273,150.27,150.21,4.64697948]
[1727246964475,3.3273,150.27,150.25,10.24]
[1727246964873,3.3273,150.27,150.26,10.24]
[1727246965477,3.3271,150.28,150.26,10.24]
[1727246967783,107.90914719,150.32,150.27,10.24]
[1727246968080,97.66914719,150.32,150.29,10.24]
[1727246968481,3.3264,150.31,150.29,10.24]
[1727246968978,3.3265,150.3,150.29,10.24]
[1727246970880,3.3261,150.32,150.29,10.24]
[1727246971083,3.3261,150.32,150.3,10.24]
[1727246972884,3.3261,150.32,150.29,10.24]
[1727246974082,3.3263,150.31,150.29,10.24]
[1727246974684,3.3261,150.32,150.3,10.24]
[1727246978287,97.47201019,150.38,150.31,10.24]
[1727246978489,107.71201019,150.38,150.33,10.24]
[1727246979092,10.24,150.36,150.29,3.3266]
[1727246979287,10.24,150.36,150.31,10.24]
[1727246979593,10.24,150.37,150.31,10.24]
[1727246981895,3.3257,150.34,150.31,10.24]
[1727246982995,3.3257,150.34,150.29,3.35086201]
[1727246982996,3.3257,150.34,150.33,10.24]
[1727246983392,3.24725457,150.4,150.33,10.24]
[1727246983594,10.24,150.41,150.36,10.24]
[1727246983891,3.3251,150.37,150.36,10.24]
[1727246984290,22.5921,150.46,150.33,1.4169]
[1727246984291,3.37870216,150.4,150.33,1.4169]
[1727246984495,3.3249,150.37,150.36,10.24]
[1727246985086,3.3252,150.36,150.33,1.4169]
[1727246985295,3.3252,150.36,150.35,10.24]
[1727246989401,2.6121,150.46,150.35,10.24]
[1727246989602,2.6121,150.46,150.33,1.4169]
[1727246989603,10.24,150.41,150.36,10.24]
[1727246989899,3.3249,150.37,150.36,10.24]
[1727246990601,3.3251,150.36,150.33,1.4169]
[1727246990801,3.3251,150.36,150.35,10.24]
[1727246991703,2.6818,150.45,150.35,10.24]
[1727246991901,10.24,150.43,150.39,10.24]
[1727246992500,10.24,150.43,150.34,4.721]
[1727246992701,10.24,150.42,150.36,10.24]
[1727246993104,3.3249,150.38,150.36,10.24]
[1727246995798,3.325,150.37,150.36,10.24]
[1727246998405,3.3252,150.36,150.34,1.3956]
[1727246998598,3.3252,150.36,150.35,10.24]
[1727247000309,10.24,150.42,150.35,10.24]
[1727247000902,97.42988346,150.44,150.35,10.24]
[1727247001102,10.24,150.41,150.35,10.24]
[1727247001905,3.3249,150.37,150.34,1.3956]
[1727247002103,3.3249,150.37,150.36,10.24]
[1727247002410,10.24,150.4,150.34,1.3956]
[1727247002612,10.24,150.4,150.34,11.6356]
[1727247004614,10.24,150.4,150.34,10.24]
[1727247004615,3.3253,150.36,150.34,10.24]
[1727247005809,3.3254,150.35,150.34,10.24]
[1727247006719,97.42988346,150.44,150.34,10.24]
[1727247007011,107.66988346,150.44,150.38,10.24]
[1727247007216,3.3245,150.39,150.38,10.24]
[1727247009616,3.3245,150.39,150.37,10.24]
[1727247010115,10.24,150.42,150.37,10.24]
[1727247010817,3.3246,150.39,150.37,10.24]
[1727247011210,10.24,150.42,150.37,10.24]
[1727247011411,3.3244,150.4,150.37,10.24]
[1727247011813,10.24,150.42,150.37,10.24]
[1727247012920,3.3245,150.39,150.37,10.24]
[1727247014817,3.3247,150.38,150.36,10.24]
[1727247015023,11.5863,150.45,150.37,10.24]
[1727247015222,11.5863,150.45,150.4,10.24]
[1727247015223,1.02944871,150.44,150.4,10.24]
[1727247015419,1.02944871,150.44,150.41,10.24]
[1727247015622,14.91712296,150.48,150.43,10.24]
[1727247015817,1.0294219,150.47,150.43,10.24]
[1727247016324,3.3234,150.44,150.43,10.24]
[1727247016719,3.3235,150.44,150.42,10.24]
[1727247017720,10.24,150.45,150.38,4.6284]
[1727247018020,10.24,150.45,150.4,10.24]
[1727247019224,3.3237,150.43,150.4,10.24]
[1727247019621,3.3238,150.42,150.4,10.24]
[1727247019923,10.24,150.44,150.39,10.24]
[1727247020425,10.24,150.44,150.38,1.3038]
[1727247020621,10.24,150.44,150.39,10.24]
[1727247021124,3.3243,150.4,150.39,10.24]
[1727247021820,1.3315,150.47,150.39,10.24]
[1727247022020,10.24,150.44,150.39,10.24]
[1727247022820,3.3243,150.4,150.39,10.24]
[1727247023020,1.3315,150.47,150.38,1.3038]
[1727247023323,10.24,150.43,150.38,1.3038]
[1727247023921,3.3245,150.39,150.38,1.3038]
[1727247026628,3.3247,150.38,150.36,10.24]
[1727247027325,10.24,150.42,150.34,4.68567705]
[1727247027524,10.24,150.42,150.35,10.24]
[1727247027924,3.3249,150.38,150.35,10.24]
[1727247028222,10.24,150.42,150.35,10.24]
[1727247029026,3.3248,150.38,150.35,10.24]
[1727247030426,10.24,150.4,150.35,10.24]
[1727247030627,10.24,150.4,150.34,11.5827]
[1727247030829,10.24,150.39,150.34,11.5827]
[1727247031928,3.3252,150.36,150.34,11.5827]
[1727247033934,3.3254,150.35,150.34,11.5827]
[1727247034531,3.3253,150.36,150.34,11.5827]
[1727247035330,10.24,150.4,150.34,11.5827]
[1727247035528,10.24,150.4,150.35,10.24]
[1727247036034,3.325,150.37,150.35,10.24]
[1727247038736,1.2957,150.42,150.34,1.3427]
[1727247038737,3.3252,150.36,150.34,1.3427]
[1727247042639,3.3254,150.35,150.34,1.3427]
[1727247049346,10.24,150.36,150.27,1.3958]
[1727247049645,10.24,150.36,150.29,10.24]
[1727247049843,10.24,150.36,150.29,13.5665]
[1727247050241,3.3262,150.32,150.29,13.5665]
[1727247050439,10.24,150.36,150.29,13.59351653]
[1727247050738,3.3262,150.32,150.29,13.59351653]
[1727247050942,1.4047,150.37,150.31,10.24]
[1727247051243,29.37804419,150.42,150.34,10.24]
[1727247051437,10.24,150.4,150.34,10.24]
[1727247051833,3.3248,150.38,150.34,10.24]
[1727247052037,3.3248,150.38,150.34,11.5774]
[1727247052341,10.24,150.4,150.34,11.5774]
[1727247052540,3.3251,150.37,150.33,3.3256]
[1727247052741,10.24,150.35,150.21,2.6768]
[1727247052941,1.361,150.39,150.23,10.24]
[1727247052942,10.24,150.29,150.23,10.24]
[1727247053147,10.24,150.28,150.22,10.24]
[1727247053640,3.3278,150.24,150.22,1.3576]
[1727247055135,3.3276,150.25,150.22,1.3576]
[1727247055335,10.24,150.28,150.23,10.24]
[1727247056146,3.3275,150.26,150.23,10.24]
[1727247056335,3.3275,150.26,150.22,1.3576]
[1727247057241,3.3276,150.25,150.22,1.3576]
[1727247057446,15.98,150.3,150.22,1.3576]
[1727247059735,3.3275,150.26,150.22,1.3576]
[1727247060542,3.3276,150.25,150.22,1.3576]
[1727247062049,15.98,150.3,150.22,1.3576]
[1727247062543,15.98,150.32,150.22,1.3576]
[1727247062749,3.3273,150.27,150.23,3.3279]
[1727247064650,3.3267,150.29,150.23,15.98]
[1727247065543,3.3267,150.29,150.25,3.3274]
[1727247068445,15.98,150.32,150.24,3.3278]
[1727247068643,15.98,150.32,150.23,1.3622]
[1727247068841,15.98,150.32,150.22,17.3376]
[1727247069649,15.98,150.32,150.23,3.3279]
[1727247069949,15.98,150.3,150.23,3.3279]
[1727247071245,3.3274,150.26,150.23,3.3279]
[1727247071441,15.98,150.3,150.22,20.6658]
[1727247071646,15.98,150.3,150.22,4.6858]
[1727247072646,3.3275,150.26,150.22,4.6858]
[1727247074552,3.3276,150.25,150.22,4.6858]
[1727247075553,3.3274,150.26,150.22,4.6858]
[1727247075948,15.98,150.3,150.23,3.328]
[1727247076147,3.3272,150.27,150.23,3.328]
[1727247076653,3.3274,150.26,150.23,3.328]
[1727247077648,3.3276,150.25,150.22,4.6858]
[1727247078055,3.3279,150.24,150.22,1.3576]
[1727247078356,10.23,150.25,150.22,1.3576]
[1727247078752,3.3276,150.25,150.22,4.6858]
[1727247078950,10.23,150.28,150.23,10.23]
[1727247079347,3.3273,150.27,150.23,13.5578]
[1727247079863,10.23,150.29,150.24,10.23]
[1727247080850,3.327,150.28,150.25,3.3275]
[1727247081451,3.327,150.28,150.24,10.23]
[1727247081452,3.327,150.28,150.24,13.5577]
[1727247082563,3.3272,150.27,150.24,13.5577]
[1727247086360,1.361,150.33,150.26,10.23]
[1727247086567,10.23,150.31,150.26,10.23]
[1727247086865,3.3267,150.3,150.26,13.5573]
[1727247087065,11.591,150.33,150.27,10.23]
[1727247087260,11.591,150.33,150.28,13.62713029]
[1727247087464,11.591,150.33,150.28,10.23]
[1727247087666,3.3263,150.31,150.28,13.5568]
[1727247088066,3.3263,150.31,150.28,16.96101991]
[1727247088468,3.3259,150.33,150.3,10.23]
[1727247089270,3.3259,150.33,150.3,13.61891107]
[1727247089466,3.3259,150.33,150.3,10.23]
[1727247090472,3.326,150.32,150.3,10.23]
[1727247090673,3.326,150.32,150.29,7.93082353]
[1727247090868,3.326,150.32,150.29,1.3481]
[1727247092980,2.7676,150.39,150.32,3.326]
[1727247092981,3.3254,150.36,150.32,3.326]
[1727247093180,3.3254,150.36,150.32,13.556]
[1727247093373,10.23,150.38,150.32,13.556]
[1727247094683,1.3627,150.39,150.32,13.556]
[1727247094871,10.23,150.38,150.32,13.556]
[1727247095788,3.3252,150.36,150.32,13.556]
[1727247098082,3.3254,150.35,150.32,13.556]
[1727247098273,10.23,150.35,150.3,10.23]
[1727247098675,3.326,150.33,150.3,10.23]
[1727247099677,10.23,150.35,150.3,3.3265]
[1727247099881,10.23,150.35,150.29,11.5781]
[1727247100592,3.3259,150.33,150.29,14.9046]
[1727247101683,3.3259,150.33,150.3,3.3264]
[1727247106083,10.23,150.34,150.28,16.85065714]
[1727247106491,3.3262,150.32,150.28,16.85065714]
[1727247110686,3.3258,150.33,150.28,13.52395714]
[1727247111587,3.3258,150.33,150.29,3.3265]
[1727247120096,1.3627,150.39,150.31,13.5562]
[1727247120397,10.23,150.37,150.31,13.5562]
[1727247120799,3.3255,150.35,150.31,13.5562]
[1727247121000,10.23,150.37,150.31,13.5562]
[1727247121196,10.23,150.35,150.3,3.3264]
[1727247122804,3.3258,150.33,150.3,3.3264]
[1727247123498,10.23,150.35,150.3,3.3264]
[1727247123701,3.3256,150.34,150.31,3.3262]
[1727247125004,13.5554,150.35,150.31,3.3262]